bitfinex-derivatives/quotes_ETHF0:USTF0_20260223
["timestamp","ask_amount","ask_price","bid_price","bid_amount"]
[1771812529583,16.93689693,1862.7,1861.6,17.30679121]
[1771812529788,16.93689693,1862.7,1861.7,17.31679121]
[1771812533389,16.93689693,1862.5,1861.7,17.31679121]
[1771812533990,16.93689693,1862.3,1861.7,0.01]
[1771812534185,16.93689693,1862.8,1861.8,17.30679121]
[1771812534383,16.93689693,1862.6,1861.8,17.30679121]
[1771812534584,16.93689693,1862.6,1861.7,0.01]
[1771812534890,16.93689693,1862.4,1861.7,0.01]
[1771812535282,16.93689693,1862.4,1861.7,17.31679121]
[1771812536092,16.93689693,1862.4,1861.7,0.01]
[1771812536293,16.93689693,1862.4,1861.7,17.31679121]
[1771812536492,16.93689693,1862.4,1861.7,0.01]
[1771812536889,16.93689693,1862.4,1861.7,17.31679121]
[1771812537991,16.93689693,1862.9,1861.7,17.31679121]
[1771812538191,16.93689693,1862.7,1861.7,17.31679121]
[1771812539993,16.93689693,1862.9,1861.7,17.31679121]
[1771812540197,16.93689693,1862.7,1861.7,17.31679121]
[1771812542996,16.93689693,1862.9,1861.7,17.31679121]
[1771812543198,0.00413862,1863.0,1862.1,17.30679121]
[1771812543397,16.93689693,1863.7,1862.3,17.30679121]
[1771812543597,16.93689693,1863.5,1862.5,17.30679121]
[1771812543993,16.93689693,1864.0,1862.5,17.30679121]
[1771812544293,5.71216244,1864.1,1862.9,17.30679121]
[1771812544294,16.93689693,1864.1,1862.9,17.30679121]
[1771812544500,16.93689693,1863.9,1862.9,17.3129478]
[1771812544892,16.94258764,1864.1,1862.9,17.3129478]
[1771812546298,16.93689693,1863.9,1862.9,0.00615659]
[1771812546602,16.93689693,1863.7,1862.9,17.3129478]
[1771812548596,16.54906808,1864.0,1862.9,17.3129478]
[1771812548993,16.54906808,1864.0,1863.1,16.58561934]
[1771812551095,16.54906808,1863.8,1862.9,16.59177593]
[1771812552701,16.54906808,1863.8,1862.9,0.00615659]
[1771812553101,16.54906808,1863.6,1862.9,0.00615659]
[1771812554002,16.54906808,1863.4,1862.9,0.00615659]
[1771812554601,16.54906808,1864.0,1862.9,0.00615659]
[1771812554805,16.54906808,1863.8,1862.9,0.00615659]
[1771812555204,16.54906808,1863.6,1862.9,0.00615659]
[1771812556711,16.54906808,1863.6,1862.6,15.62064482]
[1771812556914,16.53977848,1863.4,1861.8,15.62064482]
[1771812557507,16.53977848,1863.2,1862.9,0.01]
[1771812557806,16.53977848,1863.2,1862.9,0.01446988]
[1771812558001,16.53977848,1863.6,1863.0,15.62064482]
[1771812558309,16.53977848,1863.8,1862.9,0.01446988]
[1771812558705,16.53977848,1863.6,1862.9,0.01446988]
[1771812560108,16.53977848,1863.6,1862.9,15.6351147]
[1771812560310,16.53977848,1863.6,1862.9,0.01446988]
[1771812560903,16.53977848,1863.6,1862.9,15.6351147]
[1771812561309,16.53977848,1863.6,1862.9,0.01446988]
[1771812562512,16.53977848,1863.6,1862.9,15.6351147]
[1771812565821,16.53977848,1863.6,1862.9,0.01446988]
[1771812566911,16.53977848,1863.6,1862.5,15.62064482]
[1771812567116,16.53977848,1863.4,1862.5,15.62064482]
[1771812567715,16.53977848,1863.4,1862.5,15.62739886]
[1771812572421,16.53977848,1863.8,1862.5,15.62739886]
[1771812572620,16.53977848,1863.6,1862.5,15.62739886]
[1771812572920,17.20821409,1863.5,1862.5,15.62739886]
[1771812573122,16.53977848,1863.5,1862.5,15.62739886]
[1771812578521,16.23881933,1863.3,1862.5,16.88880419]
[1771812584623,11.07990295,1863.9,1862.6,0.26849]
[1771812584925,16.23881933,1863.7,1862.7,16.88205015]
[1771812588127,16.23881933,1864.0,1862.7,16.88205015]
[1771812588329,16.23881933,1863.8,1862.7,16.88205015]
[1771812591136,16.23881933,1863.8,1862.7,16.89205015]
[1771812593737,16.23881933,1864.0,1862.7,16.89205015]
[1771812594536,16.23881933,1864.0,1862.9,16.88205015]
[1771812596336,16.23881933,1864.0,1863.0,7.07183035]
[1771812596531,16.23881933,1864.0,1863.1,16.88205015]
[1771812596732,0.00569071,1864.1,1863.1,16.88205015]
[1771812596932,0.00569071,1864.1,1863.2,0.2684]
[1771812597130,16.24451004,1864.1,1863.3,16.88205015]
[1771812597735,16.24451004,1864.1,1862.7,0.01]
[1771812597933,16.24451004,1864.1,1863.0,16.88205015]
[1771812600037,16.24451004,1864.1,1863.0,16.89205015]
[1771812600438,16.24451004,1864.1,1863.0,0.01]
[1771812600628,16.24451004,1864.1,1863.0,16.89205015]
[1771812601445,16.24451004,1864.1,1863.2,16.88205015]
[1771812601736,7.44897342,1865.1,1863.5,16.88205015]
[1771812601737,16.23881933,1864.5,1863.5,16.88205015]
[1771812602435,16.23881933,1864.3,1863.3,16.88205015]
[1771812602740,16.23881933,1864.1,1863.1,16.88205015]
[1771812602936,16.23881933,1863.9,1863.0,0.01]
[1771812603140,16.23881933,1863.9,1863.0,16.89205015]
[1771812603437,16.23881933,1863.9,1863.0,16.88205015]
[1771812604841,16.23881933,1863.9,1862.6,16.88205015]
[1771812605042,16.23881933,1863.7,1862.5,0.00675404]
[1771812605241,16.23881933,1863.5,1862.5,16.88880419]
[1771812607336,16.23881933,1863.5,1862.5,16.89880419]
[1771812607542,16.23881933,1864.1,1862.7,16.88205015]
[1771812607739,16.23881933,1863.9,1862.7,16.88205015]
[1771812610843,15.99486811,1863.7,1862.7,16.88205015]
[1771812614044,15.99486811,1863.9,1862.7,16.88205015]
[1771812614246,15.99486811,1863.9,1862.9,15.80578456]
[1771812616948,16.56105648,1863.7,1862.9,15.80578456]
[1771812620849,16.56105648,1864.2,1862.9,15.80578456]
[1771812621050,16.56105648,1864.0,1862.9,15.80578456]
[1771812622549,16.56105648,1864.0,1863.1,16.24244321]
[1771812624054,2.823,1864.1,1863.1,16.24244321]
[1771812624750,19.38405648,1864.2,1863.1,16.24244321]
[1771812625053,0.00554435,1864.3,1863.5,16.24244321]
[1771812625952,16.56660083,1864.3,1863.5,16.24244321]
[1771812627654,16.56105648,1864.1,1863.0,16.24244321]
[1771812627854,16.56105648,1863.9,1863.0,16.24244321]
[1771812629754,2.823,1864.0,1863.0,16.25244321]
[1771812630257,19.38405648,1864.0,1863.0,16.25244321]
[1771812631257,19.38405648,1864.0,1862.5,16.25919725]
[1771812631457,16.56105648,1863.8,1862.5,16.25919725]
[1771812631654,14.15885219,1863.9,1861.5,16.24244321]
[1771812631655,16.56105648,1863.4,1861.5,16.24244321]
[1771812631854,16.56105648,1863.0,1861.5,16.24244321]
[1771812632259,16.56105648,1862.8,1861.5,16.24244321]
[1771812632461,16.56105648,1862.6,1861.3,16.24244321]
[1771812632657,16.56105648,1862.4,1861.3,0.00689895]
[1771812632858,16.56105648,1862.2,1860.9,16.24244321]
[1771812633160,22.29147808,1862.3,1860.9,16.51117321]
[1771812633362,16.56105648,1862.2,1860.9,16.51117321]
[1771812633665,16.56105648,1862.4,1861.1,16.24244321]
[1771812633856,16.56105648,1862.4,1861.1,16.24757791]
[1771812634258,16.56105648,1862.4,1861.3,16.24244321]
[1771812634956,0.00689967,1862.6,1861.3,16.24244321]
[1771812634957,16.56795615,1862.6,1861.3,16.24244321]
[1771812635156,0.00689967,1862.6,1861.7,16.24244321]
[1771812635356,16.56105648,1863.0,1861.7,16.24244321]
[1771812636258,16.56657155,1863.0,1861.7,16.24244321]
[1771812637362,16.56105648,1862.8,1861.7,16.24244321]
[1771812638164,16.56105648,1862.8,1861.2,16.24244321]
[1771812638560,5.7304216,1862.7,1861.2,16.24244321]
[1771812638760,15.30985064,1862.6,1861.2,16.24244321]
[1771812640266,15.30985064,1862.4,1861.2,16.24244321]
[1771812644172,15.30985064,1862.4,1861.1,16.24238499]
[1771812644367,15.30985064,1862.2,1861.1,16.24238499]
[1771812644776,15.30985064,1862.4,1861.3,16.23725029]
[1771812647177,15.30985064,1862.2,1861.3,16.23725029]
[1771812649874,5.7304216,1862.1,1861.1,16.24238499]
[1771812650078,15.30985064,1862.0,1861.1,16.24238499]
[1771812650279,15.30985064,1862.0,1861.1,0.0051347]
[1771812650875,15.30985064,1861.9,1861.1,0.0051347]
[1771812651075,15.30985064,1861.8,1860.7,16.23725029]
[1771812651477,15.30985064,1861.8,1860.5,16.23725029]
[1771812651777,15.30985064,1861.6,1860.5,16.23725029]
[1771812651980,15.30985064,1861.6,1859.7,0.26889]
[1771812652184,15.31388743,1861.6,1859.8,16.23725029]
[1771812652382,15.30985064,1861.4,1859.8,16.23725029]
[1771812652589,15.30985064,1861.4,1860.0,16.23725029]
[1771812652784,0.00403679,1861.6,1860.2,16.23725029]
[1771812652988,15.30985064,1862.0,1860.9,16.23725029]
[1771812654088,15.31493048,1862.0,1860.9,16.23725029]
[1771812655385,15.30985064,1861.8,1860.9,16.23725029]
[1771812657089,15.30985064,1861.6,1860.3,16.23725029]
[1771812657285,15.30985064,1861.4,1860.3,16.23725029]
[1771812660693,2.823,1861.5,1860.3,16.23725029]
[1771812660985,18.13285064,1861.5,1860.3,16.23725029]
[1771812662492,18.13285064,1861.4,1860.3,16.23725029]
[1771812663096,18.13285064,1861.4,1860.3,16.24725029]
[1771812665794,18.13285064,1861.4,1860.3,16.51606029]
[1771812666395,2.823,1861.4,1860.3,16.51606029]
[1771812666594,2.823,1861.4,1860.6,16.23725029]
[1771812667496,18.13285064,1861.4,1860.6,16.23725029]
[1771812668196,15.30985064,1861.4,1860.6,16.23725029]
[1771812668598,14.89489589,1861.9,1860.6,16.23725029]
[1771812668792,14.89489589,1861.7,1860.6,16.23725029]
[1771812668994,17.71789589,1861.6,1860.6,16.23725029]
[1771812672402,14.89489589,1861.4,1860.4,15.01139859]
[1771812672699,14.89489589,1861.2,1860.3,0.01]
[1771812672897,14.89489589,1861.0,1860.3,0.01]
[1771812673096,14.89489589,1861.0,1860.3,15.02139859]
[1771812674997,14.89489589,1861.5,1860.3,15.02139859]
[1771812675997,14.89489589,1861.3,1860.3,15.02139859]
[1771812676201,14.89489589,1861.1,1860.3,15.02139859]
[1771812677497,14.89489589,1861.1,1860.3,0.01]
[1771812677902,15.82302334,1860.9,1860.3,0.01]
[1771812679397,15.82302334,1860.9,1860.3,14.5557687]
[1771812680102,15.82302334,1860.9,1860.3,0.01]
[1771812680809,15.82302334,1860.9,1860.3,14.5557687]
[1771812681010,18.64602334,1860.9,1860.3,14.5557687]
[1771812681311,15.82302334,1861.1,1860.3,14.5557687]
[1771812683910,2.823,1861.2,1860.3,14.5557687]
[1771812684212,15.82302334,1861.4,1860.3,14.5557687]
[1771812687810,15.82302334,1861.5,1860.5,14.5457687]
[1771812689021,18.64602334,1861.4,1860.5,14.5457687]
[1771812691214,15.82302334,1861.2,1860.3,14.5557687]
[1771812692213,15.82302334,1861.2,1860.3,0.01]
[1771812692511,15.82302334,1861.0,1860.3,14.5557687]
[1771812694104,2.823,1861.1,1860.3,14.5557687]
[1771812694305,18.64602334,1861.1,1860.3,14.5557687]
[1771812694710,18.64602334,1861.1,1860.3,0.01]
[1771812695713,15.82302334,1860.9,1860.3,0.01]
[1771812695908,2.44290953,1860.8,1860.3,14.5557687]
[1771812696112,15.82302334,1860.9,1860.3,14.5557687]
[1771812697412,15.82302334,1860.9,1860.3,0.01]
[1771812699913,15.65860441,1860.7,1860.0,14.5457687]
[1771812700117,17.72051394,1860.7,1859.7,14.85558529]
[1771812701819,15.65860441,1860.7,1859.7,14.85558529]
[1771812704319,15.65860441,1861.0,1859.9,14.85027757]
[1771812707116,15.65860441,1860.8,1859.9,14.85027757]
[1771812707422,15.65860441,1860.6,1859.9,14.85027757]
[1771812707622,15.66326242,1860.6,1859.9,14.85027757]
[1771812713226,0.00465801,1860.6,1859.9,14.85027757]
[1771812714229,15.65860441,1861.1,1859.9,14.85027757]
[1771812714827,15.65860441,1861.1,1860.1,14.85027757]
[1771812715329,15.66545446,1861.1,1860.1,14.85027757]
[1771812717928,15.65860441,1860.9,1859.7,14.85558529]
[1771812718132,15.65860441,1860.7,1859.7,14.85558529]
[1771812719434,15.65860441,1860.5,1859.3,14.85027757]
[1771812719629,15.65860441,1860.3,1859.3,14.85027757]
[1771812720233,15.65860441,1860.2,1859.3,14.85027757]
[1771812720531,15.65860441,1860.2,1859.3,14.85468183]
[1771812721135,0.65683558,1860.1,1859.3,0.00440426]
[1771812721339,15.65860441,1860.0,1859.3,0.00440426]
[1771812721935,15.65860441,1860.0,1858.9,14.85027757]
[1771812722135,15.65860441,1859.8,1858.9,14.85027757]
[1771812723040,15.65860441,1859.8,1858.9,0.00419454]
[1771812723237,15.65860441,1859.6,1858.4,14.85027757]
[1771812723433,5.72479184,1859.7,1858.2,14.85027757]
[1771812723434,15.65860441,1859.4,1858.2,14.85027757]
[1771812723833,15.65860441,1859.2,1858.2,14.85027757]
[1771812724141,15.663911,1859.2,1858.2,14.85478521]
[1771812724934,0.00530659,1859.2,1858.2,14.85478521]
[1771812725240,0.00530659,1859.2,1858.4,14.85027757]
[1771812725440,15.65860441,1859.6,1858.4,14.85027757]
[1771812726236,13.2,1860.3,1858.4,14.85027757]
[1771812726237,15.65860441,1859.8,1858.5,14.85027757]
[1771812726436,15.65860441,1860.2,1858.9,14.85027757]
[1771812726636,15.65860441,1860.9,1858.9,14.85027757]
[1771812726942,15.65860441,1860.6,1859.1,14.85027757]
[1771812727540,15.66427436,1860.6,1859.1,14.85027757]
[1771812728643,15.66427436,1860.6,1859.3,15.47977972]
[1771812731144,15.66427436,1860.6,1858.7,15.47977972]
[1771812731145,14.95993786,1860.4,1858.7,15.47977972]
[1771812731339,14.95993786,1860.0,1858.7,15.47977972]
[1771812733044,14.95993786,1860.0,1858.9,15.47977972]
[1771812734736,14.95993786,1860.3,1859.2,15.47977972]
[1771812735539,0.00566995,1860.6,1859.2,15.47977972]
[1771812735540,14.95993786,1860.5,1859.2,15.47977972]
[1771812735746,14.95993786,1860.5,1859.4,15.47977972]
[1771812735948,0.00566995,1860.6,1859.6,15.47977972]
[1771812736141,0.00566995,1860.6,1859.6,15.48658648]
[1771812737849,14.32608652,1860.6,1859.6,15.48658648]
[1771812738654,0.00566995,1860.6,1859.6,15.48658648]
[1771812738850,0.00566995,1860.6,1859.8,14.04433664]
[1771812740252,14.32608652,1860.6,1859.8,14.04433664]
[1771812740949,0.00566995,1860.6,1859.8,14.04433664]
[1771812741345,6.63851654,1861.8,1859.6,0.00680676]
[1771812741346,14.32041657,1861.7,1860.4,14.04433664]
[1771812741546,14.32041657,1862.6,1860.8,14.04433664]
[1771812741747,14.32041657,1862.4,1860.8,14.04433664]
[1771812741951,14.32041657,1862.2,1860.8,14.04433664]
[1771812742351,14.32460567,1862.2,1860.8,14.04433664]
[1771812743358,14.32460567,1862.2,1861.2,14.04433664]
[1771812743548,0.0041891,1862.2,1861.2,14.04958337]
[1771812745662,0.0041891,1862.2,1861.4,14.04433664]
[1771812746353,14.32041657,1862.8,1861.5,5.59125812]
[1771812746555,14.32041657,1862.8,1861.6,14.04433664]
[1771812747058,14.32041657,1862.8,1861.8,14.04433664]
[1771812747455,14.32579874,1862.8,1861.8,14.04433664]
[1771812748159,14.32579874,1862.8,1861.5,14.04433664]
[1771812750160,14.32579874,1862.8,1861.7,14.04433664]
[1771812751156,0.00538217,1862.8,1861.9,14.04433664]
[1771812752059,14.32041657,1863.2,1862.1,14.04433664]
[1771812753163,14.32494668,1863.2,1862.1,14.04433664]
[1771812755566,14.32494668,1863.2,1861.4,14.04433664]
[1771812755759,14.32041657,1863.0,1861.4,14.04433664]
[1771812756962,5.59578823,1863.2,1861.2,5.59650485]
[1771812756963,14.32041657,1862.6,1861.2,14.04958337]
[1771812758060,14.32041657,1862.4,1861.2,14.04958337]
[1771812762068,15.01573443,1862.2,1861.2,14.04958337]
[1771812762269,0.381,1862.2,1861.2,14.04958337]
[1771812762771,15.01573443,1862.1,1861.2,14.04958337]
[1771812763162,15.01573443,1861.9,1861.2,14.04958337]
[1771812766672,0.381,1862.0,1861.2,14.04958337]
[1771812766865,15.39673443,1862.0,1861.2,14.04958337]
[1771812767973,15.01573443,1862.0,1861.2,14.04958337]
[1771812769175,15.01573443,1862.0,1859.7,23.4401475]
[1771812769176,15.01573443,1862.0,1860.9,14.60812415]
[1771812770164,15.01573443,1862.0,1860.9,14.61489698]
[1771812770372,15.01573443,1861.8,1860.9,14.61489698]
[1771812770573,15.02201989,1861.8,1860.9,14.61489698]
[1771812770775,15.02201989,1861.8,1860.9,14.62489698]
[1771812774384,15.01573443,1861.6,1860.1,14.60812415]
[1771812774672,15.01573443,1861.4,1860.1,14.60812415]
[1771812774872,15.01573443,1861.3,1860.1,14.60812415]
[1771812775072,15.01573443,1861.3,1860.3,14.60812415]
[1771812775476,15.01573443,1861.3,1860.3,14.61435598]
[1771812775674,15.01573443,1861.1,1860.3,0.00623183]
[1771812776376,15.01573443,1860.9,1859.9,14.60812415]
[1771812777374,15.01573443,1860.9,1859.9,14.61236193]
[1771812780077,15.01573443,1860.7,1859.5,14.60812415]
[1771812780281,15.01573443,1860.5,1858.7,14.60812415]
[1771812780880,15.01573443,1860.3,1858.7,14.60812415]
[1771812781179,15.01573443,1860.1,1858.7,14.61480368]
[1771812781382,15.01573443,1859.9,1858.7,14.61480368]
[1771812781681,15.01573443,1859.7,1858.7,0.00667953]
[1771812782085,15.01573443,1859.7,1858.7,14.61480368]
[1771812783584,15.01573443,1859.5,1858.7,0.00667953]
[1771812784383,15.01573443,1859.5,1858.3,14.60812415]
[1771812784783,15.01573443,1859.5,1858.7,0.01]
[1771812785383,15.01573443,1859.5,1858.7,0.01604878]
[1771812786387,15.01573443,1859.3,1858.7,0.01604878]
[1771812786782,15.01573443,1859.3,1858.1,14.60812415]
[1771812787182,15.01573443,1859.1,1858.1,14.60812415]
[1771812787381,15.01573443,1859.1,1857.3,0.26924]
[1771812787581,15.01573443,1859.1,1857.4,14.60812415]
[1771812787783,15.01573443,1858.9,1857.6,14.60812415]
[1771812788080,15.0217818,1858.9,1857.8,14.60812415]
[1771812789679,0.00604737,1858.9,1857.8,14.60812415]
[1771812791189,14.67177601,1859.3,1858.0,14.52037242]
[1771812791587,14.67177601,1859.3,1858.2,14.52037242]
[1771812791789,14.67177601,1859.5,1858.4,14.52037242]
[1771812791988,9.11333943,1860.7,1858.8,14.52037242]
[1771812791989,14.67177601,1859.9,1858.8,14.52037242]
[1771812792189,14.67722492,1859.9,1858.8,14.52625706]
[1771812792483,0.00544891,1859.9,1859.0,14.52037242]
[1771812794186,14.67177601,1860.5,1859.2,14.52037242]
[1771812795088,14.67678565,1860.5,1859.2,14.52037242]
[1771812795489,14.67177601,1860.4,1859.2,14.52037242]
[1771812798589,0.00500964,1860.5,1859.2,14.52037242]
[1771812798796,13.7856483,1860.4,1859.4,14.30882322]
[1771812804592,13.7856483,1860.2,1859.4,14.30882322]
[1771812804791,13.7856483,1860.4,1859.4,14.30882322]
[1771812804995,0.381,1860.2,1859.4,14.30882322]
[1771812805294,0.381,1860.3,1859.4,14.30882322]
[1771812808291,0.03341525,1860.3,1859.4,14.30882322]
[1771812808488,0.00500964,1860.5,1859.4,14.30882322]
[1771812808697,0.00500964,1860.5,1859.6,14.30882322]
[1771812809093,13.7856483,1861.2,1859.8,14.30882322]
[1771812809294,13.7856483,1861.2,1860.0,14.30882322]
[1771812809499,13.7856483,1861.1,1860.0,14.30882322]
[1771812810099,13.79046315,1861.1,1860.0,14.30882322]
[1771812816607,0.00481485,1861.1,1860.2,14.30882322]
[1771812816807,0.00481485,1861.1,1860.2,14.31536873]
[1771812817102,13.79046315,1861.1,1860.2,14.31536873]
[1771812817505,0.00481485,1861.1,1860.2,14.31536873]
[1771812817907,13.79046315,1861.1,1860.2,14.31536873]
[1771812819209,0.00481485,1861.1,1860.4,14.03500073]
[1771812819410,13.71972339,1861.7,1860.6,14.03500073]
[1771812819804,0.033,1862.2,1860.5,12.70790361]
[1771812819805,13.2,1862.2,1860.8,14.03500073]
[1771812820008,13.71972339,1862.1,1860.8,14.03500073]
[1771812820312,13.71972339,1862.1,1861.2,14.03500073]
[1771812820313,0.00608332,1862.1,1861.2,14.03500073]
[1771812821715,13.2,1862.9,1861.4,14.03500073]
[1771812821716,13.71972339,1862.7,1861.4,14.03500073]
[1771812822113,13.71972339,1862.7,1861.6,14.03500073]
[1771812822710,13.72458222,1862.7,1861.6,14.03912111]
[1771812822905,0.00485883,1862.7,1861.6,14.03912111]
[1771812823312,13.72458222,1862.7,1861.6,14.03912111]
[1771812823814,0.00485883,1862.7,1861.6,14.03912111]
[1771812824314,13.72458222,1862.7,1861.6,14.03912111]
[1771812825319,0.00485883,1862.7,1861.8,14.03500073]
[1771812825814,0.00485883,1862.7,1862.0,14.03500073]
[1771812826112,13.71972339,1863.2,1862.0,14.03500073]
[1771812827218,13.72520702,1863.2,1862.0,14.03500073]
[1771812836328,13.71972339,1863.0,1861.7,14.03500073]
[1771812839031,13.71972339,1862.8,1861.6,14.03912111]
[1771812839723,13.71972339,1862.6,1861.6,14.03912111]
[1771812841119,13.71972339,1862.6,1861.6,0.00412038]
[1771812841328,19.45014499,1862.5,1861.6,0.00412038]
[1771812841528,13.71972339,1862.4,1861.6,0.00412038]
[1771812842024,13.71972339,1863.1,1861.9,14.03500073]
[1771812842732,13.71972339,1862.9,1861.9,14.03500073]
[1771812842921,13.71972339,1862.9,1861.9,0.00513748]
[1771812843227,13.71972339,1862.9,1861.9,14.04013821]
[1771812844728,13.71972339,1862.9,1861.9,14.05013821]
[1771812847226,13.71972339,1862.7,1861.9,14.05013821]
[1771812849136,0.65499782,1862.6,1861.9,14.05013821]
[1771812849440,13.71972339,1862.7,1861.9,14.05013821]
[1771812849733,15.1283921,1862.6,1861.9,14.05013821]
[1771812849934,14.47335488,1862.6,1861.9,14.05013821]
[1771812850532,14.47335488,1862.4,1861.9,0.01513748]
[1771812851431,14.47335488,1862.2,1861.7,14.5520217]
[1771812852530,14.47335488,1862.2,1861.7,14.5586391]
[1771812854733,14.47335488,1862.2,1861.1,14.5520217]
[1771812854931,14.47335488,1862.0,1860.9,14.5520217]
[1771812855135,14.47335488,1861.8,1860.9,14.5520217]
[1771812855636,14.47335488,1861.6,1860.4,14.5520217]
[1771812855832,14.47335488,1861.4,1860.4,14.55721395]
[1771812856033,14.47335488,1861.3,1860.4,14.55721395]
[1771812861039,14.77542249,1861.5,1860.4,14.55721395]
[1771812863842,0.00586758,1861.6,1860.4,14.55721395]
[1771812864144,14.78129007,1861.6,1860.4,14.55721395]
[1771812869045,14.80842249,1861.5,1860.4,14.55721395]
[1771812873243,14.77542249,1861.3,1860.4,14.55721395]
[1771812876545,14.80842249,1861.3,1860.4,14.55721395]
[1771812877246,14.80842249,1861.5,1860.4,14.55721395]
[1771812879452,14.80842249,1861.5,1860.6,13.63955393]
[1771812885054,15.03194088,1862.2,1861.0,13.63955393]
[1771812885351,15.03194088,1862.0,1861.0,13.63955393]
[1771812886154,15.03603651,1862.0,1861.0,13.63955393]
[1771812889953,0.00409563,1862.0,1861.0,13.63955393]
[1771812890149,15.03603651,1862.0,1861.0,13.63955393]
[1771812890357,0.00409563,1862.0,1861.2,13.63955393]
[1771812890860,15.03603651,1862.0,1861.2,13.63955393]
[1771812891262,15.03194088,1862.3,1861.2,13.90823393]
[1771812892460,15.03638297,1862.3,1861.2,13.90823393]
[1771812896159,15.03638297,1862.3,1861.2,13.63955393]
[1771812900059,15.03638297,1862.3,1861.3,0.26868]
[1771812900256,0.00444209,1862.3,1861.6,13.63955393]
[1771812900458,15.03194088,1862.8,1862.0,13.63955393]
[1771812900654,15.03194088,1863.2,1862.0,13.63955393]
[1771812901261,15.03194088,1863.0,1861.5,13.63955393]
[1771812901462,15.03194088,1862.8,1860.9,13.63955393]
[1771812901659,15.03194088,1862.6,1861.0,13.63955393]
[1771812901866,15.03194088,1862.6,1861.2,13.63955393]
[1771812902466,15.03194088,1862.6,1861.4,13.63955393]
[1771812902860,15.03194088,1862.8,1861.6,13.63955393]
[1771812903062,15.03194088,1862.9,1861.8,13.63955393]
[1771812904167,15.03194088,1863.1,1862.0,13.63955393]
[1771812908172,15.72220059,1863.0,1861.5,13.63955393]
[1771812908367,15.03194088,1862.9,1861.5,13.63955393]
[1771812911469,14.62033279,1862.7,1861.5,13.63955393]
[1771812917169,14.82051102,1862.5,1861.5,13.63955393]
[1771812917362,14.82051102,1862.3,1861.5,13.63955393]
[1771812917963,14.85351102,1862.3,1861.5,13.63955393]
[1771812918770,14.82051102,1862.1,1861.5,13.63955393]
[1771812918974,14.85351102,1862.1,1861.5,13.63955393]
[1771812919372,14.82051102,1862.1,1861.4,0.01]
[1771812919975,14.82051102,1862.1,1861.2,0.00558946]
[1771812920576,14.82051102,1862.0,1861.2,0.00558946]
[1771812920875,14.82051102,1861.8,1860.3,14.39195727]
[1771812921270,14.82051102,1861.8,1860.4,14.39195727]
[1771812921773,14.82533039,1861.8,1860.4,14.39886067]
[1771812923278,14.82533039,1861.8,1860.6,14.39195727]
[1771812925274,14.82533039,1861.8,1860.7,7.06772806]
[1771812925478,14.82533039,1861.8,1860.8,14.39195727]
[1771812930680,14.82533039,1861.8,1860.6,14.39195727]
[1771812930884,14.82051102,1861.6,1860.6,14.39195727]
[1771812932577,14.82051102,1861.6,1860.4,14.66766067]
[1771812932884,14.82051102,1861.6,1860.4,14.39886067]
[1771812936180,5.7304216,1861.5,1860.4,0.0069034]
[1771812936381,14.82051102,1861.4,1860.4,0.0069034]
[1771812936778,14.82051102,1861.4,1860.4,14.39886067]
[1771812937584,14.82051102,1861.2,1860.4,14.39886067]
[1771812937880,14.82051102,1861.2,1860.4,0.0069034]
[1771812939089,14.82051102,1861.2,1860.4,14.73047531]
[1771812941587,0.00481937,1861.8,1860.4,14.73047531]
[1771812941588,13.67439697,1861.5,1860.4,14.73047531]
[1771812946589,13.67439697,1861.3,1860.4,14.73047531]
[1771812948488,13.70739697,1861.3,1860.4,14.73047531]
[1771812952389,13.67439697,1861.5,1860.6,14.72357191]
[1771812952587,13.67439697,1861.7,1860.7,14.72357191]
[1771812953291,13.67921634,1861.8,1860.7,14.72357191]
[1771812953491,13.67921634,1861.8,1860.9,14.72357191]
[1771812955691,13.67921634,1861.8,1860.6,14.72357191]
[1771812958191,13.67439697,1861.6,1860.6,14.72357191]
[1771812958789,13.67439697,1861.6,1860.4,14.73047531]
[1771812959390,13.67439697,1861.4,1860.4,14.73047531]
[1771812961098,0.033,1861.7,1860.8,0.26874]
[1771812961399,13.67921634,1861.8,1860.9,14.72357191]
[1771812962199,13.71221634,1861.8,1860.9,14.72357191]
[1771812962398,13.67921634,1861.8,1860.5,14.72357191]
[1771812962797,13.71221634,1861.8,1860.5,14.72357191]
[1771812963600,13.67439697,1861.6,1860.5,14.72357191]
[1771812964092,13.67439697,1861.3,1860.5,14.72357191]
[1771812964493,13.67439697,1861.1,1860.5,14.72357191]
[1771812964696,13.67439697,1861.1,1860.4,0.0069034]
[1771812964996,13.67439697,1860.7,1859.9,14.72357191]
[1771812965600,13.67439697,1860.5,1859.9,14.72357191]
[1771812966000,13.70739697,1860.5,1859.9,14.72912236]
[1771812967798,13.67439697,1860.5,1859.9,0.00555045]
[1771812968196,0.033,1860.2,1859.9,0.00555045]
[1771812968400,13.84951035,1861.1,1859.7,14.72357191]
[1771812969003,8.29814568,1862.0,1859.0,6.527]
[1771812969004,13.84951035,1861.9,1860.6,14.70708519]
[1771812969196,13.84951035,1862.6,1861.0,14.70708519]
[1771812969396,10.00979906,1863.0,1861.0,14.70708519]
[1771812969397,0.00538777,1861.9,1861.0,14.70708519]
[1771812969599,13.2,1862.9,1861.4,14.70708519]
[1771812969600,13.84951035,1862.3,1861.4,14.70708519]
[1771812970401,13.84951035,1862.3,1861.0,14.70708519]
[1771812970602,13.85548002,1862.3,1861.0,14.70708519]
[1771812971502,13.85548002,1862.3,1860.8,14.70708519]
[1771812971908,13.84951035,1862.1,1860.8,14.70708519]
[1771812972397,13.84951035,1861.8,1860.8,14.70708519]
[1771812977604,13.73409702,1862.0,1861.0,14.07397775]
[1771812978005,13.73409702,1862.2,1861.0,14.07397775]
[1771812979302,13.76709702,1862.2,1861.1,14.07397775]
[1771812979501,13.74006669,1862.3,1861.5,14.07397775]
[1771812979899,13.77306669,1862.3,1861.5,14.07397775]
[1771812980315,13.73409702,1862.0,1861.5,14.07397775]
[1771812980811,0.033,1861.9,1861.5,14.07397775]
[1771812981010,13.73409702,1862.2,1861.5,14.07397775]
[1771812981709,0.00596967,1862.3,1861.5,14.07397775]
[1771812983010,13.73409702,1863.3,1861.5,14.07397775]
[1771812983317,13.73409702,1863.3,1862.2,14.07397775]
[1771812983813,13.76709702,1863.1,1862.2,14.07397775]
[1771812984013,13.73886171,1863.1,1862.2,14.07939718]
[1771812984213,13.76709702,1863.0,1862.2,14.07939718]
[1771812984412,0.00476469,1863.1,1862.2,19.66966282]
[1771812984610,0.00476469,1863.1,1862.3,14.07397775]
[1771812984914,0.03776469,1863.1,1862.3,14.07397775]
[1771812985113,0.00476469,1863.1,1862.3,14.07397775]
[1771812985313,0.033,1863.0,1862.3,14.07397775]
[1771812985814,0.033,1863.0,1862.3,14.08397775]
[1771812986017,13.73409702,1862.8,1862.3,14.08397775]
[1771812986218,13.73409702,1863.0,1862.3,14.08397775]
[1771812986613,13.76709702,1862.8,1862.3,14.08397775]
[1771812986812,13.73409702,1862.8,1862.3,14.08397775]
[1771812987010,13.73409702,1862.9,1862.3,14.08397775]
[1771812987212,13.73409702,1862.9,1862.3,0.01]
[1771812987620,0.033,1862.6,1862.3,14.08397775]
[1771812987815,13.73409702,1862.8,1862.3,14.08397775]